Workbook

Sheet किराना सूची
B2: किराना सूची
D4: आइटम | E4: दुकान | F4: श्रेणी | G4: मात्रा | H4: इकाई | I4: इकाई मूल्य | J4: कुल | K4: टिप्पणी
C5: ="c" -> c | D5: संतरे | E5: किराना | F5: उत्पादन | G5: 2 | H5: पाउंड | I5: रु2.99 | J5: =IFERROR(List[मात्रा]*List[इकाई मूल्य],"") -> रु5.98
C6: ="c" -> c | D6: सेब | E6: बाग | F6: उत्पादन | G6: 3 | H6: पाउंड | I6: रु1.99 | J6: =IFERROR(List[मात्रा]*List[इकाई मूल्य],"") -> रु5.97 | K6: कूपन लें
C7: ="c" -> c | D7: केले | E7: किराना | F7: उत्पादन | G7: 1 | H7: गुच्छा | I7: रु3.99 | J7: =IFERROR(List[मात्रा]*List[इकाई मूल्य],"") -> रु3.99
C8: c | D8: काहू | E8: बाज़ार | F8: उत्पादन | G8: 2 | H8: हेड | I8: रु2.29 | J8: =IFERROR(List[मात्रा]*List[इकाई मूल्य],"") -> रु4.58
C9: c | D9: टमाटर | E9: बाज़ार | F9: उत्पादन | G9: 4 | H9: पाउंड | I9: रु3.49 | J9: =IFERROR(List[मात्रा]*List[इकाई मूल्य],"") -> रु13.96
C10: c | D10: शरबत | E10: बाज़ार | F10: उत्पादन | G10: 2 | H10: प्रत्येक | I10: रु1.50 | J10: =IFERROR(List[मात्रा]*List[इकाई मूल्य],"") -> रु3.00
C11: c | D11: अजवाइन | E11: किराना | F11: उत्पादन | G11: 2 | H11: गुच्छा | I11: रु1.99 | J11: =IFERROR(List[मात्रा]*List[इकाई मूल्य],"") -> रु3.98
C12: c | D12: ककड़ी | E12: बाज़ार | F12: उत्पादन | G12: 1 | H12: पाउंड | I12: रु2.29 | J12: =IFERROR(List[मात्रा]*List[इकाई मूल्य],"") -> रु2.29
C13: c | D13: मशरूम | E13: किराना | F13: उत्पादन | G13: 0.5 | H13: पाउंड | I13: रु2.25 | J13: =IFERROR(List[मात्रा]*List[इकाई मूल्य],"") -> रु1.13 | K13: बड़े पोर्टाबेला
C14: c | D14: दूध | E14: घर पहुँच सेवा | F14: डेयरी | G14: 2 | H14: गल | I14: रु3.99 | J14: =IFERROR(List[मात्रा]*List[इकाई मूल्य],"") -> रु7.98
C15: c | D15: पनीर | E15: घर पहुँच सेवा | F15: डेयरी | G15: 1 | H15: पाउंड | I15: रु9.99 | J15: =IFERROR(List[मात्रा]*List[इकाई मूल्य],"") -> रु9.99 | K15: ब्लॉक चीज़ की किस्में
C16: c | D16: अंडे | E16: घर पहुँच सेवा | F16: डेयरी | G16: 2 | H16: डोज़ | I16: रु3.50 | J16: =IFERROR(List[मात्रा]*List[इकाई मूल्य],"") -> रु7.00
C17: c | D17: कॉटेज पनीर | E17: घर पहुँच सेवा | F17: डेयरी | G17: 1 | H17: 16 oz | I17: रु3.89 | J17: =IFERROR(List[मात्रा]*List[इकाई मूल्य],"") -> रु3.89
C18: c | D18: खट्टा क्रीम | E18: घर पहुँच सेवा | F18: डेयरी | G18: 1 | H18: 8 oz | I18: रु2.99 | J18: =IFERROR(List[मात्रा]*List[इकाई मूल्य],"") -> रु2.99
C19: c | D19: दही | E19: किराना | F19: डेयरी | G19: 1 | H19: 16 oz | I19: रु4.99 | J19: =IFERROR(List[मात्रा]*List[इकाई मूल्य],"") -> रु4.99 | K19: ग्रीक विथ हनी
C20: c | D20: बीफ़ | E20: बाज़ार | F20: माँस | G20: 10 | H20: पाउंड | I20: रु7.99 | J20: =IFERROR(List[मात्रा]*List[इकाई मूल्य],"") -> रु79.90 | K20: बेकन में लिपटे फि़लेट्स
C21: c | D21: वाइल्ड सेलमन | E21: मछली बाज़ार | F21: समुद्रीभोजन | G21: 6 | H21: पाउंड | I21: रु8.99 | J21: =IFERROR(List[मात्रा]*List[इकाई मूल्य],"") -> रु53.94
C22: c | D22: अलास्कन किंग क्रैब लेग्स | E22: मछली बाज़ार | F22: समुद्रीभोजन | G22: 5 | H22: पाउंड | I22: रु10.99 | J22: =IFERROR(List[मात्रा]*List[इकाई मूल्य],"") -> रु54.95

Sheet परिकलन (hidden)
A1: *** पत्रक छुपा रहना चाहिए***
K3: =SUM(List[कुल])-SUM(K6:K9) -> रु0.00 | L3: =ROUND(K3,0) -> रु0.00 | M3: अन्य कुलयोग
L4: =ROUNDUP(SUM(List[कुल]),0) -> रु271.00 | M4: किराना कुलयोग
E6: =IFERROR(INDEX(List[श्रेणी],MATCH(,COUNTIF($E$5:E5,List[श्रेणी]),)),"") -> उत्पादन | F6: =SUMIFS(List[कुल],List[श्रेणी],E6) -> 44.875 | G6: =F6+ROW()/1000000 -> 44.875006 | H6: =LARGE($G$6:$G$21,1) -> 108.890009 | I6: =MATCH(H6,$G$6:$G$21,0) -> 4 | J6: =INDEX($E$6:$E$21,$I6) -> समुद्रीभोजन | K6: =INDEX($F$6:$F$21,$I6) -> रु108.89 | L6: =ROUND(K6,0) -> रु109.00 | M6: =UPPER(J6) & " कुलयोग" -> समुद्रीभोजन कुलयोग
E7: =IFERROR(INDEX(List[श्रेणी],MATCH(,COUNTIF($E$5:E6,List[श्रेणी]),)),"") -> डेयरी | F7: =SUMIFS(List[कुल],List[श्रेणी],E7) -> 36.84 | G7: =F7+ROW()/1000000 -> 36.840007 | H7: =LARGE($G$6:$G$21,2) -> 79.900008 | I7: =MATCH(H7,$G$6:$G$21,0) -> 3 | J7: =INDEX($E$6:$E$21,$I7) -> माँस | K7: =INDEX($F$6:$F$21,$I7) -> रु79.90 | L7: =ROUND(K7,0) -> रु80.00 | M7: =UPPER(J7) & " कुलयोग" -> माँस कुलयोग
E8: =IFERROR(INDEX(List[श्रेणी],MATCH(,COUNTIF($E$5:E7,List[श्रेणी]),)),"") -> माँस | F8: =SUMIFS(List[कुल],List[श्रेणी],E8) -> 79.9 | G8: 79.900008 | H8: =LARGE($G$6:$G$21,3) -> 44.875006 | I8: =MATCH(H8,$G$6:$G$21,0) -> 1 | J8: =INDEX($E$6:$E$21,$I8) -> उत्पादन | K8: =INDEX($F$6:$F$21,$I8) -> रु44.88 | L8: =ROUND(K8,0) -> रु45.00 | M8: =UPPER(J8) & " कुलयोग" -> उत्पादन कुलयोग
E9: =IFERROR(INDEX(List[श्रेणी],MATCH(,COUNTIF($E$5:E8,List[श्रेणी]),)),"") -> समुद्रीभोजन | F9: =SUMIFS(List[कुल],List[श्रेणी],E9) -> 108.89 | G9: 108.890009 | H9: =LARGE($G$6:$G$21,4) -> 36.840007 | I9: =MATCH(H9,$G$6:$G$21,0) -> 2 | J9: =INDEX($E$6:$E$21,$I9) -> डेयरी | K9: =INDEX($F$6:$F$21,$I9) -> रु36.84 | L9: =ROUND(K9,0) -> रु37.00 | M9: =UPPER(J9) & " कुलयोग" -> डेयरी कुलयोग
E10: =IFERROR(INDEX(List[श्रेणी],MATCH(,COUNTIF($E$5:E9,List[श्रेणी]),)),"") ->  | F10: =SUMIFS(List[कुल],List[श्रेणी],E10) -> 0 | G10: 1e-05
E11: =IFERROR(INDEX(List[श्रेणी],MATCH(,COUNTIF($E$5:E10,List[श्रेणी]),)),"") ->  | F11: =SUMIFS(List[कुल],List[श्रेणी],E11) -> 0 | G11: 1.1e-05
E12: =IFERROR(INDEX(List[श्रेणी],MATCH(,COUNTIF($E$5:E11,List[श्रेणी]),)),"") ->  | F12: =SUMIFS(List[कुल],List[श्रेणी],E12) -> 0 | G12: 1.2e-05
E13: =IFERROR(INDEX(List[श्रेणी],MATCH(,COUNTIF($E$5:E12,List[श्रेणी]),)),"") ->  | F13: =SUMIFS(List[कुल],List[श्रेणी],E13) -> 0 | G13: 1.3e-05
E14: =IFERROR(INDEX(List[श्रेणी],MATCH(,COUNTIF($E$5:E13,List[श्रेणी]),)),"") ->  | F14: =SUMIFS(List[कुल],List[श्रेणी],E14) -> 0 | G14: 1.4e-05
E15: =IFERROR(INDEX(List[श्रेणी],MATCH(,COUNTIF($E$5:E14,List[श्रेणी]),)),"") ->  | F15: =SUMIFS(List[कुल],List[श्रेणी],E15) -> 0 | G15: 1.5e-05
E16: =IFERROR(INDEX(List[श्रेणी],MATCH(,COUNTIF($E$5:E15,List[श्रेणी]),)),"") ->  | F16: =SUMIFS(List[कुल],List[श्रेणी],E16) -> 0 | G16: 1.6e-05
E17: =IFERROR(INDEX(List[श्रेणी],MATCH(,COUNTIF($E$5:E16,List[श्रेणी]),)),"") ->  | F17: =SUMIFS(List[कुल],List[श्रेणी],E17) -> 0 | G17: 1.7e-05
E18: =IFERROR(INDEX(List[श्रेणी],MATCH(,COUNTIF($E$5:E17,List[श्रेणी]),)),"") ->  | F18: =SUMIFS(List[कुल],List[श्रेणी],E18) -> 0 | G18: 1.8e-05
E19: =IFERROR(INDEX(List[श्रेणी],MATCH(,COUNTIF($E$5:E18,List[श्रेणी]),)),"") ->  | F19: =SUMIFS(List[कुल],List[श्रेणी],E19) -> 0 | G19: 1.9e-05
E20: =IFERROR(INDEX(List[श्रेणी],MATCH(,COUNTIF($E$5:E19,List[श्रेणी]),)),"") ->  | F20: =SUMIFS(List[कुल],List[श्रेणी],E20) -> 0 | G20: 2e-05
E21: =IFERROR(INDEX(List[श्रेणी],MATCH(,COUNTIF($E$5:E20,List[श्रेणी]),)),"") ->  | F21: =SUMIFS(List[कुल],List[श्रेणी],E21) -> 0 | G21: 2.1e-05
